bitfinex/quotes_ETHUSD_20240603
["timestamp","ask_amount","ask_price","bid_price","bid_amount"]
[1717457296150,0.09554722,3775.1,3775.0,2.86414223]
[1717457296347,0.09554722,3775.1,3775.0,4.185408]
[1717457296551,0.0099988,3775.1,3775.0,7.77380413]
[1717457296751,0.09551458,3775.1,3775.0,7.7737236]
[1717457297063,2.64867,3775.5,3775.1,2.3502]
[1717457297254,2.64867,3775.5,3775.4,1.39651387]
[1717457297454,2.64867,3775.5,3775.4,3.69757557]
[1717457297455,2.74136126,3775.5,3775.4,3.69757557]
[1717457298572,2.74136126,3775.5,3775.4,3.69737872]
[1717457298968,2.74136126,3775.5,3775.4,2.86386485]
[1717457299467,2.74136126,3775.5,3775.4,3.69737872]
[1717457299667,0.09269126,3775.5,3775.4,3.69737872]
[1717457299867,2.64844,3775.8,3775.4,3.69737872]
[1717457300038,2.64844,3775.8,3775.7,0.563]
[1717457300243,2.64844,3775.8,3775.7,1.48334594]
[1717457304192,2.64844,3775.8,3775.7,1.48334203]
[1717457304876,2.64844,3775.8,3775.7,0.563]
[1717457305071,2.64844,3775.8,3775.7,1.48334082]
[1717457306372,2.64844,3775.8,3775.7,0.563]
[1717457307202,2.64844,3775.8,3775.7,1.48334171]
[1717457308198,2.64844,3775.8,3775.7,0.563]
[1717457312277,2.74147843,3775.8,3775.7,0.563]
[1717457314170,2.74147843,3775.8,3775.4,0.55552391]
[1717457314506,2.74147843,3775.8,3775.7,0.563]
[1717457315073,5.01657843,3775.8,3775.7,0.563]
[1717457320304,2.64875,3775.4,3775.2,3.25730304]
[1717457320475,2.64875,3775.4,3775.3,1.48339774]
[1717457320668,2.74167387,3775.4,3775.3,1.48339774]
[1717457324606,2.74167387,3775.4,3775.3,0.92039774]
[1717457324807,2.74167387,3775.4,3775.3,1.48339774]
[1717457333124,2.74167387,3775.4,3775.3,2.8639111]
[1717457333815,2.74167387,3775.4,3775.3,1.48339774]
[1717457334202,2.74167387,3775.4,3775.3,2.8639111]
[1717457336007,2.74167387,3775.4,3775.3,3.41943501]
[1717457338221,2.74167387,3775.4,3775.3,2.8639111]
[1717457338424,2.74167387,3775.4,3775.3,3.41973908]
[1717457339802,2.74167387,3775.4,3775.3,2.85673908]
[1717457339803,5.02377387,3775.4,3775.3,2.85673908]
[1717457340112,5.02377387,3775.4,3775.3,2.8639111]
[1717457342130,5.02377387,3775.4,3775.3,2.3009111]
[1717457342336,5.02377387,3775.4,3775.3,2.8639111]
[1717457345541,2.74167387,3775.4,3775.3,2.3009111]
[1717457345757,3.24405126,3775.4,3775.3,1.48339774]
[1717457346042,3.24405126,3775.4,3775.3,0.563]
[1717457346518,2.64904,3775.0,3774.9,1.38086639]
[1717457346836,2.64904,3775.0,3774.9,2.86444373]
[1717457347013,2.7417334,3775.0,3774.9,2.85727171]
[1717457347216,2.7417334,3775.0,3774.9,3.42027171]
[1717457347427,2.7417334,3775.0,3774.9,2.86444373]
[1717457348198,3.25158674,3775.0,3774.9,0.92057734]
[1717457348504,3.25158674,3775.0,3774.9,1.48357734]
[1717457349226,3.25158674,3775.0,3774.9,0.92057734]
[1717457349406,3.25158674,3775.0,3774.7,1.38086639]
[1717457349607,2.7417334,3775.0,3774.9,0.563]
[1717457350108,2.7417334,3775.0,3774.7,1.38086639]
[1717457350312,2.7417334,3775.0,3774.9,0.563]
[1717457352931,2.64935,3774.5,3774.4,1.93669437]
[1717457353243,2.64935,3774.5,3774.4,2.03948636]
[1717457353413,2.74173508,3774.5,3774.4,2.86452477]
[1717457353613,2.74173508,3774.5,3774.4,1.48365838]
[1717457357269,2.74173508,3774.5,3774.4,0.92065838]
[1717457357415,2.74173508,3774.5,3774.4,0.563]
[1717457357610,2.74173508,3774.5,3774.4,1.48365838]
[1717457360114,2.74173508,3774.5,3774.4,1.48369187]
[1717457360548,2.74173508,3774.5,3774.4,0.563]
[1717457360910,2.74173508,3774.5,3774.4,1.48370232]
[1717457362437,2.74173508,3774.5,3774.4,0.563]
[1717457363251,2.74173508,3774.5,3774.4,1.48367484]
[1717457363461,2.74173508,3774.5,3774.4,0.92067484]
[1717457363645,2.74173508,3774.5,3774.4,0.563]
[1717457364162,2.74173508,3774.5,3774.1,2.81632798]
[1717457364324,2.74173508,3774.5,3774.4,0.563]
[1717457364651,2.74173508,3774.5,3774.2,1.32126577]
[1717457364963,2.74173508,3774.5,3774.4,0.563]
[1717457365252,2.74173508,3774.5,3774.2,2.70231978]
[1717457365453,2.74173508,3774.5,3774.4,0.563]
[1717457367232,2.74173508,3774.5,3774.1,2.2605]
[1717457367536,2.74173508,3774.5,3774.2,0.92072641]
[1717457367855,2.64959,3774.2,3773.9,0.55582798]
[1717457368057,2.64959,3774.2,3774.1,0.563]
[1717457368268,2.64959,3774.2,3774.1,0.9207493]
[1717457368435,2.64959,3774.2,3773.7,0.55582798]
[1717457368634,2.64959,3774.2,3774.1,0.563]
[1717457369039,2.64959,3774.2,3773.6,0.55582798]
[1717457369040,2.64982,3773.9,3773.6,0.55582798]
[1717457369237,2.64982,3773.9,3773.8,0.563]
[1717457372226,2.74122563,3773.9,3773.8,0.563]
[1717457376583,2.74122563,3773.9,3773.4,2.4464]
[1717457376771,2.74122563,3773.9,3773.8,0.563]
[1717457378269,2.74122563,3773.9,3773.4,2.4464]
[1717457378470,2.74122563,3773.9,3773.8,0.563]
[1717457387162,2.74122563,3773.9,3773.2,2.4192]
[1717457387361,2.74122563,3773.9,3773.8,0.563]
[1717457387939,5.19162563,3773.9,3773.8,0.563]
[1717457388140,6.46928409,3773.9,3773.8,0.563]
[1717457388441,2.64998,3773.7,3773.1,0.55582798]
[1717457388639,2.64998,3773.7,3773.1,1.47673518]
[1717457388841,2.64998,3773.7,3773.0,2.3459]
[1717457388842,2.65011,3773.5,3773.0,2.3459]
[1717457389048,2.65011,3773.5,3773.4,0.563]
[1717457392547,2.65011,3773.5,3773.0,2.3459]
[1717457392725,2.65011,3773.5,3773.4,0.563]
[1717457394638,2.65011,3773.5,3773.4,1.48386349]
[1717457395476,2.64986,3773.8,3773.4,1.48386349]
[1717457395677,2.64986,3773.8,3773.7,0.563]
[1717457395885,5.64986,3773.8,3773.7,0.563]
[1717457397385,2.64986,3773.8,3773.7,0.563]
[1717457397587,7.32,3774.2,3773.8,2.64984]
[1717457397877,7.32,3774.2,3774.1,0.563]
[1717457398083,2.2508,3774.6,3774.1,0.563]
[1717457398269,2.2508,3774.6,3774.4,0.563]
[1717457398985,5.6494,3774.5,3774.4,0.563]
[1717457399476,2.64958,3774.2,3773.6,1.38121531]
[1717457399648,2.64958,3774.2,3774.1,0.563]
[1717457400279,2.64958,3774.2,3773.6,1.32126577]
[1717457400583,2.64958,3774.2,3774.1,0.563]
[1717457401148,5.10978,3774.2,3774.1,0.563]
[1717457401600,5.10978,3774.2,3773.6,1.32126577]
[1717457401774,5.10978,3774.2,3774.1,0.563]
[1717457403691,4.96491,3773.8,3773.7,0.563]
[1717457403877,4.96491,3773.8,3773.5,1.38122828]
[1717457404190,4.96491,3773.8,3773.0,1.11135183]
[1717457404191,2.65005,3773.5,3773.0,0.55582798]
[1717457404480,2.65005,3773.5,3773.4,0.563]
[1717457406414,2.65005,3773.5,3773.4,1.48391722]
[1717457407443,2.65005,3773.5,3773.4,0.92091722]
[1717457407655,3.146555,3773.5,3773.3,0.92091722]
[1717457407946,2.65027,3773.2,3773.1,0.563]
[1717457408112,2.65027,3773.2,3773.1,1.48401527]
[1717457410216,2.65027,3773.2,3773.1,3.42121908]
[1717457410424,2.65027,3773.2,3773.1,2.03984325]
[1717457410623,2.65027,3773.2,3773.1,3.42121908]
[1717457410904,2.65006,3773.5,3773.1,3.42121908]
[1717457411117,2.65006,3773.5,3773.4,0.563]
[1717457411635,2.65006,3773.5,3773.4,1.48401527]
[1717457412545,2.65006,3773.5,3773.4,2.8653911]
[1717457413299,5.10696,3773.5,3773.4,2.3023911]
[1717457413504,8.371966,3773.5,3773.4,2.3023911]
[1717457413734,8.371966,3773.5,3773.4,0.92101527]
[1717457413928,2.65026,3773.3,3773.1,1.38137583]
[1717457414118,2.65026,3773.3,3773.2,0.92102738]
[1717457415940,2.7376995,3773.3,3773.2,0.92102738]
[1717457417730,2.7376995,3773.3,3773.2,1.48402738]
[1717457419122,2.7376995,3773.3,3773.2,0.563]
[1717457420452,2.7376995,3773.3,3773.0,1.38137583]
[1717457420625,2.7376995,3773.3,3773.2,0.563]
[1717457426836,2.7376995,3773.3,3773.2,1.4840031]
[1717457427920,0.0874395,3773.3,3773.2,1.48396653]
[1717457428171,0.0874395,3773.3,3773.2,2.86541633]
[1717457428383,3.0,3773.6,3773.2,2.86541633]
[1717457428543,0.08737044,3773.3,3773.1,3.28541387]
[1717457428871,2.64998,3773.7,3773.2,3.69874735]
[1717457429159,2.64998,3773.7,3773.6,0.563]
[1717457429457,5.64998,3773.7,3773.6,0.563]
[1717457429846,5.64998,3773.7,3773.6,1.48389339]
[1717457430218,5.64998,3773.7,3773.6,0.563]
[1717457431832,5.64998,3773.7,3773.6,1.4839014]
[1717457432429,2.64998,3773.7,3773.6,1.4839014]
[1717457434258,2.64998,3773.7,3773.6,0.563]
[1717457435157,2.64998,3773.7,3773.4,1.38135602]
[1717457435465,2.73764007,3773.7,3773.6,0.563]
[1717457436282,2.73764007,3773.7,3773.4,1.38135602]
[1717457436424,2.65012,3773.4,3773.2,1.93699999]
[1717457436622,2.65012,3773.4,3773.3,1.48395046]
[1717457437463,2.65012,3773.4,3773.3,2.86530648]
[1717457439543,2.65012,3773.4,3773.3,2.8653212]
[1717457441431,2.65012,3773.4,3773.3,2.3023212]
[1717457441659,2.65012,3773.4,3773.3,2.8653212]
[1717457441879,2.65012,3773.4,3773.3,1.48392848]
[1717457443162,2.65012,3773.4,3773.3,2.8653212]
[1717457446865,2.65012,3773.4,3773.3,3.42096517]
[1717457447247,2.64993,3773.7,3773.4,2.3667]
[1717457447447,2.64993,3773.7,3773.6,0.563]
[1717457447667,2.64993,3773.7,3773.6,1.48392848]
[1717457448186,2.64993,3773.7,3773.6,2.8653212]
[1717457448357,2.64993,3773.7,3773.6,1.48392848]
[1717457448558,2.64993,3773.7,3773.6,2.8653212]
[1717457448766,2.64993,3773.7,3773.6,1.48392848]
[1717457449010,2.64993,3773.7,3773.6,2.8653212]
[1717457449163,2.64993,3773.7,3773.6,1.48392848]
[1717457449480,2.64993,3773.7,3773.6,2.8653212]
[1717457449788,2.64993,3773.7,3773.6,1.48392848]
[1717457449983,2.64993,3773.7,3773.6,2.8653212]
[1717457450290,0.08766558,3773.7,3773.6,4.18658697]
[1717457450491,2.64972,3774.0,3773.6,4.18658697]
[1717457450781,9.96948,3774.4,3773.9,1.11905584]
[1717457450981,9.96948,3774.4,3773.8,0.83351387]
[1717457450982,2.64948,3774.4,3774.3,0.563]
[1717457451159,2.64948,3774.4,3774.3,2.8653212]
[1717457451362,2.64948,3774.4,3774.3,1.48392848]
[1717457451691,2.64948,3774.4,3774.3,2.8653212]
[1717457451859,2.64948,3774.4,3774.3,1.48392848]
[1717457454533,2.64948,3774.4,3774.3,1.48363868]
[1717457455435,2.6492,3774.8,3774.3,1.48363868]
[1717457455585,2.6492,3774.8,3774.7,0.563]
[1717457463533,2.6492,3774.8,3774.2,2.83993273]
[1717457463689,2.6492,3774.8,3774.3,2.24181426]
[1717457463889,2.6492,3774.8,3774.7,0.563]
[1717457465299,2.73767865,3774.8,3774.7,0.563]
[1717457465842,0.08847865,3774.8,3774.7,0.563]
[1717457466132,3.0,3775.1,3774.7,0.563]
[1717457466434,3.0,3775.1,3774.3,1.32126577]
[1717457466750,3.0,3775.1,3775.0,0.563]
[1717457471155,2.64865,3775.5,3775.0,1.88426577]
[1717457471371,2.64865,3775.5,3775.4,0.563]
[1717457473021,5.64865,3775.5,3775.4,0.563]
[1717457473204,2.64865,3775.5,3775.4,0.563]
[1717457473543,5.64865,3775.5,3775.4,0.563]
[1717457478663,8.01415,3775.5,3775.4,0.563]
[1717457480252,8.10300829,3775.5,3775.4,0.563]
[1717457480453,5.10300829,3775.5,3775.4,0.563]
[1717457491183,5.10300829,3775.5,3775.0,1.32126577]
[1717457491502,2.64885,3775.3,3775.0,1.32126577]
[1717457491642,2.64885,3775.3,3775.2,0.563]
[1717457494593,2.64885,3775.3,3775.0,1.32126577]
[1717457494759,2.64885,3775.3,3775.2,0.563]
[1717457495237,2.73765074,3775.3,3775.0,1.32126577]
[1717457495440,2.73765074,3775.3,3775.2,0.563]
[1717457498847,2.73765074,3775.3,3775.2,1.48349085]
[1717457500492,2.73765074,3775.3,3775.2,2.8642018]
[1717457500812,2.73765074,3775.3,3775.2,3.42023453]
[1717457500995,2.73765074,3775.3,3775.2,2.8642018]
[1717457501297,2.73765074,3775.3,3775.2,3.42023453]
[1717457501594,2.73765074,3775.3,3775.2,2.8642018]
[1717457501767,2.73765074,3775.3,3775.2,2.85723453]
[1717457501976,3.01141581,3775.3,3775.2,0.563]
[1717457503120,3.01141581,3775.3,3775.2,1.48352201]
[1717457503612,2.73765074,3775.3,3775.2,1.48352201]
[1717457504628,2.73765074,3775.3,3775.2,1.48351742]
[1717457505484,2.73765074,3775.3,3775.2,0.92051768]
[1717457505708,2.71835501,3775.3,3775.2,0.92051768]
[1717457506022,5.71835501,3775.3,3775.1,0.563]
[1717457506203,0.8141555,3775.2,3775.1,0.563]
[1717457506405,0.8141555,3775.2,3775.1,1.48355469]
[1717457506573,0.90303403,3775.2,3775.1,1.48355469]
[1717457507504,0.08887853,3775.2,3775.1,1.48355469]
[1717457507675,5.62955427,3775.3,3775.1,1.48355469]
[1717457507880,0.08887574,3775.2,3775.1,0.563]
[1717457508203,5.62955427,3775.3,3775.1,1.48353875]
[1717457508388,0.08887574,3775.2,3775.1,0.563]
[1717457508795,5.62955427,3775.3,3775.1,1.48353691]
[1717457509107,0.08887574,3775.2,3775.1,0.563]
[1717457509307,5.62955427,3775.3,3775.1,2.86433406]
[1717457509471,5.62955427,3775.3,3775.2,0.92052913]
[1717457510110,6.1925097,3775.3,3775.2,0.92052913]
[1717457510315,2.64893,3775.1,3775.0,1.38076464]
[1717457510513,2.64914,3774.8,3774.7,0.563]
[1717457510844,2.73793209,3774.8,3774.7,1.48366683]
[1717457512309,2.73793209,3774.8,3774.7,1.48365808]
[1717457513884,2.73793209,3774.8,3774.7,0.563]
[1717457514230,2.73793209,3774.8,3774.7,1.48364286]
[1717457514371,2.73793209,3774.8,3774.7,0.563]
[1717457515044,2.73793209,3774.8,3774.7,1.48364528]
[1717457515215,2.73793209,3774.8,3774.7,0.563]
[1717457523051,2.73793209,3774.8,3774.7,1.48361905]
[1717457524330,2.73793209,3774.8,3774.7,1.48359198]
[1717457524998,2.73793209,3774.8,3774.7,1.48361331]
[1717457526398,2.73793209,3774.8,3774.7,1.48359468]
[1717457527948,3.3117253,3774.8,3774.7,1.48359468]
[1717457528147,2.64935,3774.5,3774.2,1.38089202]
[1717457528332,2.64935,3774.5,3774.3,0.92064802]
[1717457528333,5.08575,3774.5,3774.3,0.92064802]
[1717457528511,2.64963,3774.1,3773.7,0.55603273]
[1717457528704,2.64963,3774.1,3774.0,0.563]
[1717457528934,2.64963,3774.1,3774.0,1.48377844]
[1717457530237,2.64963,3774.1,3774.0,0.563]
[1717457530663,2.64963,3774.1,3774.0,1.48377264]
[1717457530879,2.64963,3774.1,3774.0,0.563]
[1717457531952,2.64963,3774.1,3774.0,3.96785933]
[1717457532853,2.64963,3774.1,3774.0,3.96785133]
[1717457534664,2.64963,3774.1,3774.0,3.0471]
[1717457534830,2.64963,3774.1,3774.0,3.96786011]
[1717457535968,2.64963,3774.1,3774.0,3.0471]
[1717457537447,2.64963,3774.1,3774.0,2.4841]
[1717457537663,2.64963,3774.1,3774.0,3.0471]
[1717457538182,2.64963,3774.1,3774.0,0.563]
[1717457540355,2.73781573,3774.1,3774.0,0.563]
[1717457542883,0.08818573,3774.1,3774.0,2.8050167]
[1717457543047,0.08818573,3774.1,3774.0,5.1929167]
[1717457543249,2.64941,3774.5,3774.0,5.1929167]
[1717457543549,2.64941,3774.5,3774.4,0.563]
[1717457543769,5.64941,3774.5,3774.4,0.563]
[1717457551072,2.64941,3774.5,3774.4,3.83086697]
[1717457551277,2.64941,3774.5,3774.4,5.15213274]
[1717457551733,2.64941,3774.5,3774.4,6.53316375]
[1717457552334,2.64941,3774.5,3774.4,7.08919648]
[1717457552610,2.64941,3774.5,3774.4,5.70810055]
[1717457552814,2.64941,3774.5,3774.4,7.08900363]
[1717457553018,2.64941,3774.5,3774.4,4.7874985]
[1717457553319,2.73774674,3774.5,3774.4,5.70810387]
[1717457553495,2.73774674,3774.5,3774.4,7.08901193]
[1717457553677,2.73774674,3774.5,3774.4,5.70810387]
[1717457553878,2.73774674,3774.5,3774.4,7.08901193]
[1717457554077,0.08833674,3774.5,3774.4,5.70810387]
[1717457554280,2.64913,3774.9,3774.4,7.08901193]
[1717457554671,2.64913,3774.9,3774.8,0.563]
[1717457554777,5.64913,3774.9,3774.8,0.563]
[1717457555277,5.73755986,3774.9,3774.8,0.563]
[1717457556143,2.73755986,3774.9,3774.8,0.563]
[1717457556912,2.73755986,3774.9,3774.8,1.48355525]
[1717457558442,0.08842986,3774.9,3774.8,5.07762102]
[1717457558655,2.64883,3775.3,3774.8,6.45850555]
[1717457558854,2.64883,3775.3,3775.2,0.563]
[1717457559438,2.64883,3775.3,3775.2,1.48346929]
[1717457559656,2.64883,3775.3,3775.2,0.563]
[1717457560028,2.64883,3775.3,3775.2,1.48346929]
[1717457560754,2.64857,3775.7,3775.2,1.48346929]
[1717457561054,2.64857,3775.7,3774.8,4.42757964]
[1717457561055,2.64857,3775.7,3775.6,0.563]
[1717457561262,5.64857,3775.7,3775.6,0.563]
[1717457564689,2.64857,3775.7,3775.6,0.563]
[1717457567273,2.64829,3776.1,3775.7,2.366]
[1717457567587,3.0,3776.0,3775.2,2.366]
[1717457567788,3.0,3776.0,3775.9,0.563]
[1717457570365,3.08607217,3776.0,3775.9,0.563]
[1717457579834,3.08607217,3776.0,3775.6,2.3046]
[1717457580029,3.08607217,3776.0,3775.9,0.563]
[1717457580532,3.08607217,3776.0,3775.4,2.4551]
[1717457580728,3.08607217,3776.0,3775.9,0.563]
[1717457585838,5.73437217,3776.0,3775.9,0.563]
[1717457604397,5.73437217,3776.0,3775.9,1.48334723]
[1717457604951,2.73437217,3776.0,3775.9,1.48334723]
[1717457605156,2.73437217,3776.0,3775.9,2.86386622]
[1717457605403,2.73437217,3776.0,3775.9,3.41934344]
[1717457610968,2.73437217,3776.0,3775.9,3.41918662]
[1717457613604,2.73437217,3776.0,3775.9,2.8637094]
[1717457614106,2.73437217,3776.0,3775.9,3.41979064]
[1717457614469,2.73437217,3776.0,3775.9,2.3007094]
[1717457614979,2.73437217,3776.0,3775.9,3.41981218]
[1717457615304,2.73437217,3776.0,3775.9,2.85681218]
[1717457618706,2.73437217,3776.0,3775.9,2.85687646]
[1717457620604,2.73437217,3776.0,3775.9,3.41987646]
[1717457620911,6.36561939,3776.0,3775.9,2.85687646]
[1717457621112,6.36561939,3776.0,3775.9,2.30077368]
[1717457621113,9.36561939,3776.0,3775.9,2.30077368]
[1717457621515,2.3871,3775.9,3775.3,1.11910278]
[1717457621814,2.3871,3775.7,3775.3,0.563]
[1717457622177,2.73030076,3775.6,3775.3,0.563]
[1717457628921,2.73030076,3775.6,3774.9,1.93686735]
[1717457628922,2.73030076,3775.6,3775.5,0.563]
[1717457639009,2.73030076,3775.6,3775.5,1.48338687]
[1717457641942,0.08172076,3775.6,3775.5,1.48338687]
[1717457642444,2.64838,3775.9,3775.5,3.4198824]
[1717457642641,0.08172782,3775.6,3775.5,1.93657055]
[1717457642843,2.64838,3775.9,3775.5,2.03941622]
[1717457643058,2.64838,3775.9,3775.8,0.563]
[1717457645327,2.73015338,3775.9,3775.8,0.563]
[1717457646979,2.73015338,3775.9,3775.5,1.93655329]
[1717457647143,2.73015338,3775.9,3775.7,0.563]
[1717457647342,2.73015338,3775.9,3775.5,1.38045051]
[1717457647343,2.64851,3775.7,3775.5,1.38045051]
[1717457647563,2.64851,3775.7,3775.5,0.563]
[1717457647773,0.08180959,3775.6,3775.5,0.563]
[1717457648354,2.64851,3775.7,3775.5,0.563]
[1717457648757,0.08180959,3775.6,3775.5,0.563]
[1717457649042,2.64871,3775.5,3774.9,1.93655329]
[1717457649241,2.64871,3775.5,3775.4,0.563]
[1717457650484,2.64871,3775.5,3774.9,1.32126577]
[1717457650664,2.64871,3775.5,3775.4,0.563]
[1717457651178,2.64871,3775.5,3774.9,1.32126577]
[1717457651380,2.64871,3775.5,3775.4,0.563]
[1717457652851,2.64887,3775.2,3774.9,1.32126577]
[1717457653048,2.64887,3775.2,3775.1,0.563]
[1717457654586,2.64887,3775.2,3774.8,1.93655329]
[1717457654788,2.64887,3775.2,3775.1,0.563]
[1717457660275,2.73044084,3775.2,3775.1,0.563]
[1717457660460,2.73044084,3775.2,3775.1,1.48349642]
[1717457660892,2.73044084,3775.2,3775.1,0.563]
[1717457661314,2.73044084,3775.2,3774.9,0.92049792]
[1717457661477,2.73044084,3775.2,3775.1,0.563]
[1717457661668,2.73044084,3775.2,3775.0,0.92049792]
[1717457661870,2.73044084,3775.2,3775.1,1.48349792]
[1717457663791,5.34368492,3775.2,3775.1,0.92049792]
[1717457663964,5.34368492,3775.2,3774.5,1.3807412]
[1717457663965,2.64934,3774.6,3774.5,1.3807412]
[1717457664168,2.64934,3774.6,3774.5,0.92061493]
[1717457664366,2.73074387,3774.6,3774.5,1.48361493]
[1717457664586,2.73074387,3774.6,3774.5,0.563]
[1717457664984,2.73074387,3774.6,3774.5,1.483645]
[1717457665908,2.73074387,3774.6,3774.5,0.920645]
[1717457666209,2.73074387,3774.6,3774.5,0.563]
[1717457666410,2.73074387,3774.6,3774.5,1.483645]
[1717457668080,2.73074387,3774.6,3774.5,0.563]
[1717457671540,2.73074387,3774.6,3774.5,1.48362044]
[1717457671981,2.73074387,3774.6,3774.5,2.03972322]
[1717457673497,0.08140387,3774.6,3774.5,5.76598899]
[1717457673878,2.64907,3774.9,3774.5,5.76598899]
[1717457674087,2.64907,3774.9,3774.8,0.563]
[1717457674611,2.64907,3774.9,3774.8,1.48353607]
[1717457674808,2.64907,3774.9,3774.8,0.92053607]
[1717457675010,2.64907,3774.9,3774.8,0.563]
[1717457675531,2.72765612,3774.9,3774.8,0.563]
[1717457680934,2.64928,3774.7,3774.3,0.55610278]
[1717457681111,2.64928,3774.7,3774.6,0.563]
[1717457681630,2.72785259,3774.7,3774.6,0.563]
[1717457682192,2.64953,3774.3,3774.1,0.55610278]
[1717457682539,2.64972,3774.0,3773.8,3.34773073]
[1717457682856,2.64972,3774.0,3773.9,1.48370684]
[1717457683162,2.64972,3774.0,3773.9,1.48373198]
[1717457684187,2.64972,3774.0,3773.9,1.48376276]
[1717457685147,2.64972,3774.0,3773.9,0.563]
[1717457685927,2.64998,3773.6,3773.5,0.55610278]
[1717457686136,2.64998,3773.6,3773.2,1.11910278]
[1717457686296,2.64998,3773.6,3773.3,0.92083041]
[1717457686491,2.64998,3773.6,3773.2,0.563]
[1717457687751,2.64998,3773.6,3773.4,0.563]
[1717457689745,2.65041,3773.0,3772.7,0.55610278]
[1717457689939,2.65041,3773.0,3772.8,0.563]
[1717457690442,0.07755717,3772.9,3772.8,0.563]
[1717457690616,2.65041,3773.0,3772.8,0.563]
[1717457690817,0.07755717,3772.9,3772.8,0.563]
[1717457691139,2.65041,3773.0,3772.8,0.563]
[1717457691577,0.07755717,3772.9,3772.8,0.563]
[1717457691961,2.65041,3773.0,3772.8,0.563]
[1717457692279,0.07755717,3772.9,3772.8,0.563]
[1717457692662,2.65041,3773.0,3772.8,0.563]
[1717457693036,2.65061,3772.8,3772.2,2.4698]
[1717457693266,2.65061,3772.8,3772.7,0.563]
[1717457693574,2.7281604,3772.8,3772.7,0.563]
[1717457700798,2.7281604,3772.8,3772.2,2.4698]
[1717457701098,2.65076,3772.6,3771.8,2.4357]
[1717457701393,2.65076,3772.6,3772.5,0.563]
[1717457702205,2.65076,3772.6,3771.9,1.32126577]
[1717457702500,5.05836,3772.6,3772.5,0.563]
[1717457703003,2.99080166,3772.6,3771.5,0.41513487]
[1717457703170,2.65107,3772.1,3772.0,0.563]
[1717457703370,2.65107,3772.1,3771.3,2.4357]
[1717457703565,2.72831617,3772.1,3772.0,0.563]
[1717457703967,2.72831617,3772.1,3771.4,1.32126577]
[1717457704500,2.72831617,3772.1,3772.0,0.563]
[1717457705787,2.72831617,3772.1,3771.1,2.4357]
[1717457705788,2.65125,3771.8,3771.1,2.4357]
[1717457706095,2.65125,3771.8,3771.7,0.563]
[1717457706826,2.65125,3771.8,3771.2,1.32126577]
[1717457707187,2.65125,3771.8,3771.7,0.563]
[1717457712810,2.65103,3772.2,3771.7,1.88426577]
[1717457713136,2.65103,3772.2,3772.1,0.563]
[1717457714644,2.65103,3772.2,3771.3,2.65158]
[1717457714815,2.65103,3772.2,3772.1,0.563]
[1717457715018,3.216133,3772.2,3771.4,1.32126577]
[1717457715254,2.65103,3772.2,3772.1,0.563]
[1717457720238,2.72484352,3772.2,3772.1,0.563]
[1717457722016,2.72484352,3772.2,3771.3,2.65158]
[1717457722303,2.72484352,3772.2,3772.0,0.563]
[1717457723668,2.6512,3771.9,3771.3,1.32126577]
[1717457723868,2.6512,3771.9,3771.8,0.563]
[1717457725988,2.6512,3771.9,3771.3,1.32126577]
[1717457726202,2.65181,3771.0,3770.9,0.0585948]
[1717457726515,2.09898041,3771.0,3770.9,0.0585948]
[1717457728474,2.09898041,3771.0,3770.9,0.6215948]
[1717457730316,2.09898041,3771.0,3770.9,0.0585948]
[1717457730503,2.30887845,3771.0,3770.9,0.6215948]
[1717457730810,2.30887845,3771.0,3770.9,0.0585948]
[1717457732027,4.56677845,3771.0,3770.9,0.0585948]
[1717457732230,7.56677845,3771.0,3770.9,0.0585948]
[1717457735192,10.3744474,3771.0,3770.9,0.0585948]
[1717457737032,7.7226374,3771.0,3770.9,0.0585948]
[1717457737227,10.3744474,3771.0,3770.9,0.0585948]
[1717457737993,11.69571317,3771.0,3770.9,0.0585948]
[1717457738632,14.34752317,3771.0,3770.9,4.8e-06]
[1717457738834,15.64752317,3771.0,3770.9,4.8e-06]
[1717457739733,12.99571317,3771.0,3770.9,4.8e-06]
[1717457740305,13.55871317,3771.0,3770.9,4.8e-06]
[1717457741635,16.21052317,3771.0,3770.9,4.8e-06]
[1717457743116,12.44571317,3771.0,3770.9,4.8e-06]
[1717457743351,13.00871317,3771.0,3770.9,4.8e-06]
[1717457748851,15.64752317,3771.0,3770.9,4.8e-06]
[1717457749053,15.66052317,3771.0,3770.9,4.8e-06]
[1717457749236,16.21052317,3771.0,3770.9,4.8e-06]
[1717457753150,12.99571317,3771.0,3770.9,4.8e-06]
[1717457753353,15.64752317,3771.0,3770.9,4.8e-06]
[1717457753529,12.99571317,3771.0,3770.9,4.8e-06]
[1717457753729,13.55871317,3771.0,3770.9,4.8e-06]
[1717457755312,14.13206373,3771.0,3770.9,4.8e-06]
[1717457755740,16.78387373,3771.0,3770.9,4.8e-06]
[1717457756755,16.22087373,3771.0,3770.9,4.8e-06]
[1717457756912,16.78387373,3771.0,3770.9,4.8e-06]
[1717457757118,13.58206373,3771.0,3770.9,4.8e-06]
[1717457757315,16.23387373,3771.0,3770.9,4.8e-06]
[1717457758355,13.58206373,3771.0,3770.9,4.8e-06]
[1717457759568,16.23386786,3771.0,3770.9,4.8e-06]
[1717457762019,15.67086786,3771.0,3770.9,4.8e-06]
[1717457762231,16.23386786,3771.0,3770.9,4.8e-06]
[1717457762733,16.78386786,3771.0,3770.9,4.8e-06]
[1717457763141,16.21052317,3771.0,3770.9,4.8e-06]
[1717457763338,16.78391817,3771.0,3770.9,4.8e-06]
[1717457764924,16.22091817,3771.0,3770.9,4.8e-06]
[1717457765228,16.78391817,3771.0,3770.9,4.8e-06]
[1717457765651,16.22091817,3771.0,3770.9,4.8e-06]
[1717457765855,16.78391817,3771.0,3770.9,4.8e-06]
[1717457766474,16.22091817,3771.0,3770.9,4.8e-06]
[1717457766779,9.2529424,3771.0,3770.9,4.8e-06]
[1717457766982,8.6899424,3771.0,3770.9,4.8e-06]
[1717457767161,8.48004436,3771.0,3770.9,4.8e-06]
[1717457769834,7.90664936,3771.0,3770.9,4.8e-06]
[1717457772044,5.25483936,3771.0,3770.9,4.8e-06]
[1717457772245,5.25483936,3771.0,3770.9,2.2957048]
[1717457772246,2.25483936,3771.0,3770.9,2.2957048]
[1717457772651,5.46964936,3771.0,3770.9,4.8e-06]
[1717457772854,9.85505684,3771.0,3770.9,4.8e-06]